Workbook

Sheet ERF SRS
C7: HOSP. GNRAL DE ESPECIALIDAD DR, MARIO TOLENTINO DIPP
C8: Estado de Rendimiento Financiero
D9: Del ejercicio terminado Al 31 de Diciembre 2025
C10: (Valores en RD$)
F12: 2025 | H12: =+[1]ESF!H7 -> 2016
C13: Ingresos (Nota 17)
A14: 0035 | D14: Impuestos
A15: 0036 | D15: Ingresos por transacciones con contraprestación
A16: 0037 | D16: Transferencias | F16: =[2]Ingresos!B32 -> 28,773,315
A17: 0038 | D17: Recargos, multas y otros ingresos
C18: Total ingresos | F18: =SUM(F14:F17) -> 28,773,315 | H18: =SUM(H14:H17) -> 0
C20: Gastos (Notas 18, 19, 20, 21 y 22)
A21: 0039 | D21: Sueldos, salarios y beneficios a empleados | F21: ='[2]Total Gasto'!B12 -> 6,215,913
A22: 0040 | D22: Subvenciones y otros pagos por transferencias
A23: 0041 | D23: Suministros y materiales para consumo | F23: ='[2]Total Gasto'!B36 -> 5,044,799
A24: 0042 | D24: Gasto de depreciación y amortización | F24: ='[2]Total Gasto'!B45 -> 830,000
A25: 0043 | D25: Deterioro del valor de propiedad, planta y equipo
A26: 0044 | D26: Otros gastos(Servicios no Personales) | F26: ='[2]Total Gasto'!B25 -> 9,887,616
A27: 0045 | D27: Gastos financieros | F27: ='[2]Total Gasto'!B52 -> 45,930 | H27: =SUMIF([1]BC!B:B,[1]ERF!A22,[1]BC!G:G) -> 
C28: Total gastos | F28: =SUM(F21:F27) -> 22,024,258 | H28: =SUM(H21:H27) -> 
F29: 0
A30: 0046 | D30: Ganancia (pérdida) por diferencia cambiaria | F30: 0 | H30: 0
A32: 0047 | D32: Participación en resultado de asociadas | F32: 0 | H32: 0
C34: Resultados positivos (ahorro) / negativo (desahorro) | F34: =+F18-F28+F30+F32 -> 6,749,057 | H34: =+H18-H28+H30+H32 -> 
C36: Atribuible a:
A37: 0048 | D37: Propietarios de la entidad controladora | F37: 0 | H37: 0
A38: 0049 | D38: Intereses minoritarios | F38: 0 | H38: 0
F39: =SUM(F37:F38) -> 0 | H39: =SUM(H37:H38) -> 0

Sheet ESP SNS
C7: HOSP. GNRAL DE ESPECIALIDAD DR, MARIO TOLENTINO DIPP
C8: Estado de Situación Financiera
C9: Del ejercicio terminado al 31 de Diciembre 2025
F13: 2025 | H13: =+[1]BC!G11 -> 2016
A14: Mapeo | C14: Activos
C15: Activos corrientes
A16: 0001 | D16: Efectivo y equivalentes de efectivo (Nota 7) | F16: =[2]Efectivo!C41 -> 28,773,315
A17: 0002 | D17: Inversiones a corto plazo (Nota 8)
A18: 0003 | D18: Porción corriente de documentos por cobrar (Nota 9)
A19: 0004 | D19: Cuenta por cobrar a corto plazo (Notas 8) | F19: ='[2]Cuenta por Cobrar'!B21 -> 38,020,287
A20: 0005 | D20: Inventarios (Nota 9) | F20: =[2]Inventario!B16 -> 184,817,830
A21: 0006 | D21: Pagos anticipados (Nota 12)
A22: 0007 | D22: Otros activos corrientes (Nota 13)
C23: Total activos corrientes | F23: =SUM(F15:F22) -> 251,611,431 | H23: =SUM(H15:H22) -> 0
C25: Activos no corrientes
A26: 0008 | D26: Cuentas por cobrar a largo plazo (Notas 14) | F26: 0
A27: 0009 | D27: Documentos por cobrar (Nota 15)
A28: 0010 | D28: Inversiones a largo plazo (Nota 16)
A29: 0011 | D29: Otros activos financieros (Notas 17)
A30: 0012 | D30: Mobiliarios y equipos neto (Nota 10) | F30: ='[2]Mobiliario Eq. Ofc.'!H26 -> 57,673,660
A31: 0013 | D31: Activos intangibles (Nota 10)
A32: 0014 | D32: Otros activos no financieros (Nota 20)
C33: Total activos no corrientes | F33: =SUM(F26:F32) -> 57,673,660 | H33: =SUM(H26:H32) -> 0
C35: Total activos | F35: =F23+F33 -> 309,285,091 | H35: =SUM(H33,H23) -> 0
C37: Pasivos
C38: Pasivos corrientes
A39: 0015 | D39: Sobregiro bancario (Nota 21)
A40: 0016 | D40: Cuentas por pagar a corto plazo (Nota 11) | F40: ='[2]CXP Corto plazo'!B17 -> 305,700
A41: 0017 | D41: Préstamos a corto plazo (Nota 23)
A42: 0018 | D42: Parte corriente de préstamos a largo plazo (Nota 24)
A43: 0019 | D43: Retenciones y acumulaciones por pagar (Nota 12)
A44: 0020 | D44: Provisiones a corto plazo (Nota 26)
A45: 0021 | D45: Beneficios a empleados a corto plazo (Nota 13)
A46: 0022 | D46: Pensiones (Nota 28)
A47: 0023 | D47: Otros pasivos corrientes (Nota 29)
C48: Total pasivos corrientes | F48: =SUM(F39:F47) -> 305,700 | H48: =SUM(H39:H47) -> 0
C50: Pasivos no corrientes
A51: 0024 | D51: Cuentas por pagar a largo plazo (Nota 14) | F51: ='[2]CXP Largo Plazo'!B16 -> 504,354
A52: 0025 | D52: Préstamos a largo plazo (Nota 31)
A53: 0026 | D53: Instrumentos de deuda (Nota 32)
A54: 0027 | D54: Provisiones a largo plazo (Nota 33)
A55: 0028 | D55: Beneficios a empleados a largo plazo (Nota 15)
A56: 0029 | D56: Otros pasivos no corrientes (Nota 35)
C57: Total pasivos no corrientes | F57: =+F51+F55 -> 504,354
C58: Total pasivos | F58: =+F48+F57 -> 810,054 | H58: =SUM(H48,H57) -> 0
C60: Activos Netos/Patrimonio (Nota 16)
A61: 0030 | D61: Capital | F61: =[2]Patrimonio!B14 -> 308,475,036
A62: 0031 | D62: Reservas
A63: 0032 | D63: Resultados positivos (ahorro) / negativo (desahorro)
A64: 0033 | D64: Resultados acumulados
A65: 0034 | D65: Intereses minoritarios
C66: Total activos netos/patrimonio | F66: =+F61+F63+F64 -> 308,475,036
C68: Total pasivos y activos netos/patrimonio | F68: =+F58+F66 -> 309,285,091 | H68: =+H58+H66 -> 0 | J68: =+F35-F68 -> 0
D77: Licda. Veronica pastranos | F77: Kelvin modesto Segura Herasme
D78: Encargado de Contabilidad | F78: Director Financiero

Sheet EFECTIVO
B6: HOSP. GNRAL DE ESPECIALIDAD DR, MARIO TOLENTINO DIPP
B7: Nota # 7: Efectivo Caja y Bancos
B8: Del ejercicio terminado Al 31 de Diciembre 2025
B9: (Valores en RD$)
A12: # Cta. | B12: Nombre de cuenta | C12: Monto
B15: Caja Chica | C15: 0
A16: 300105134 | B16: Operaciones Ex PSS
B17: Fondo Salud Ex-PSS | C17: 0
A18: 160-112014 | B18: Servicio Nacional de Salud (Fondos Senasa)
A19: 314-0000776 | B19: Fondo Operativo | C19: 0
A20: 240-020561-7 | B20: Cuenta Nueva Ranchito
A21: 314-00145-4 | B21: Fondos Especiales CDC
A22: 314-0000920-0 | B22: Cuenta VIH | C22: 0
A23: 314-000181-0 | B23: Cuenta Tuberculosis | C23: 0
B24: Venta de Servicios | C24: 28,773,314.57
B25: Cuenta Proyecto FGRSS(BID)
B26: Anticipo Financieros
B27: Cta. Nomina | C27: 0 | F27: 0
B28: Total balance cuentas de bancarias del Reservas | C28: =C18+C22+C23+C24+C25+C26+C15 -> 28,773,314.57
A31: # Cta. | B31: Tesoreria Nacional | C31: Monto
A32: 9995028000 | B32: Fondo de la Direccion Central Servicio Nacional de Salud
A33: 9995028001 | B33: Sud- Cuenta Cuota de Pago Direccion Central Servicio Nacional de Salud
A34: 2110003000 | B34: Cuenta Direccion Central SNS
A35: 9998014000 | B35: Recaudacion Establecimiento de Salud PSS
B36: Cuenta Colectora Recursos Directos PSS | C36: 0
A37: 100198000 | B37: Sud- Cuenta Disponibilidad Direccion Central Servicio Nacional de Salud
A38: 100198001 | B38: Sub-Cuota de Pago Direccion Central Servicio Nacional de Salud
B39: Total balance cuentas de bancarias tesoreria nacional | C39: 0
B41: Total efectivo y equivalentes de efectivo | C41: =+C28+C39 -> 28,773,314.57

Sheet INVETARIO
A6: HOSP. GNRAL DE ESPECIALIDAD DR, MARIO TOLENTINO DIPP
A7: Nota # 9: Inventario
A8: Del ejercicio terminado Al 31 de Diciembre 2025
A12: Descripción | B12: Monto
A13: Inventario de Útiles y Suministro de Oficina | B13: 5,030,454.66
A14: Inventario Medicamentos | B14: 127,770,934.07
A15: Inventario de Material Med. Quirurjicos. | B15: 52,016,441.60
A16: Total Inventario | B16: =B13+B14+B15 -> 184,817,830.33

Sheet INGRESOS
A6: HOSP. GNRAL DE ESPECIALIDAD DR, MARIO TOLENTINO DIPP
A7: Nota 17: Ingresos
A8: Del ejercicio terminado Al 31 de Diciembre 2025
A9: (Valores en RD$)
A12: Ingresos con Contraprestacion de Servicios | B12: Monto
A14: Venta de Servicios | B14: 28,773,314.57
A15: Sub-Total | B15: =SUM(B14) -> 28,773,314.57
A17: Ingresos sin Contraprestacion de Servicios | B17: 0
A18: Otros Ingresos | B18: 0
A19: Operaciones Ex PSS
A20: Fondo Salud Ex-PSS
A21: Fondo Operativo
A22: Cuenta Nueva Ranchito
A23: Fondos Especiales CDC
A24: Cuenta VIH
A25: Cuenta Tuberculosis
A26: Cuenta Proyecto FGRSS(BID) | B26: 0
A27: Anticipo Financieros | B27: 0
A28: Otros Ingresos
A29: Otras Donaciones Corrientes(Medicamentos) | B29: 0
A30: Cuenta Direccion Central SNS
A31: Sud- Cuenta Disponibilidad Direccion Central Servicio Nacional de Salud
A32: Sub-Total | B32: =SUM(B18:B31) -> 0.00
A33: Total | B33: =+B15+B32 -> 28,773,314.57

Sheet CXP Corto plazo
A6: HOSP. GNRAL DE ESPECIALIDAD DR, MARIO TOLENTINO DIPP
A7: Nota # 11: Cuentas por Pagar a Corto Plazo
A8: Del ejercicio terminado Al 31 de Diciembre 2025
A9: (Valores en RD$)
A13: Detalle | B13: Monto
A14: Fondos en Consignacion a Pagar | B14: 0
A15: Transferencia sector Publico por Pagar | B15: 0
A16: Cuentas por Pagar Suplidores | B16: 305,700.24
A17: Total Cuentas Por Pagar a Corto Plazo | B17: =+B16+B14+B15 -> 305,700.24

Sheet CXP COBRAR
A6: HOSP. GNRAL DE ESPECIALIDAD DR, MARIO TOLENTINO DIPP
A7: Notas # 8: Cuenta Por Cobrar
A8: Del ejercicio terminado Al 31 de Diciembre 2025
A9: (Valores en RD$)
A13: Detalle | B13: Monto
A16: Cuentas Por Cobrar Colaboradores
A17: Otras Cuentas Por Cobrar (Retencion IR-3)
A18: Cuentas por Cobrar Hospital Mario Tolentino Dipp
A19: Cuentas por Cobrar Proyecto FGBRSS
A20: Cuentas por Cobrar Ventas de Servicios | B20: 38,020,286.58
A21: Anticipos financieros | B21: 0
A22: Total Cuentas Por Cobrar | B22: =B16+B17+B19+B20+B21+B18 -> 38,020,286.58

Sheet CXP Largo plazo
A6: HOSP. GNRAL DE ESPECIALIDAD DR, MARIO TOLENTINO DIPP
A7: Nota #14: Cuentas por Pagar Largo Plazo
A8: Del ejercicio terminado Al 31 de Diciembre 2025
A9: (Valores en RD$)
A13: Detalle | B13: Monto
A14: Cuentas por Pagar Largo Plazo | B14: 504,354.00
A16: Total Cuentas Por Pagar a Largo Plazo | B16: =SUM(B14:B15) -> 504,354
A38: Licda: veronica pastranos peña Kelvin Modesto Segura
A39: Encargado de Contabilidad | B39: Director Financiero

Sheet INGRESO Y EGRESO
A4: HOSP. GNRAL DE ESPECIALIDAD DR, MARIO TOLENTINO DIPP
A5: Nota # 17: Ingreso y Egreso
A6: Del ejercicio terminado Al 31 de Diciembre 2025
A7: Para el periodo terminado el 30 de Diciembre de 2025 la composición de los ingresos es como sigue:
A9: Detalle | B9: 2025
A10: Al 31 de enero 2023 y 2022 la composición de los ingresos es como sigue:
A12: Detalle
A14: Ingresos Fondo 100 (Para Serv. Personales) | B14: 31,975,889.80
A15: Ingresos Fondo 100 (Para Serv. Objectales.) | B15: 433,333.00
A16: Ingresos por Servicios cafeteria. | B16: 40,000.00
A17: Ingresos por Servicios a extrajero | B17: 303,039.00
A18: Ingresos por Odontologia. | B18: 148,291.00
A19: Ingresos por Servicios ARS | B19: 28,281,994.57
A21: Total Ingresos | B21: =SUM(B14:B20) -> 61,182,547.37
A26: Sueldos, Salarios y beneficios a colaboradores (Nota 12)
A28: La composición de los saldos al 30 de Diciembre del 2025 es como sigue:
A31: Detalle | B31: 2025
A33: Sueldos Fijos | B33: 37,827,539.23
A34: Sueldo Personal Temporero | B34: 1,438,562.89
A35: Sueldo Personal Retroactivo
A36: Contribuciones a la Seguridad Social | B36: =931969.62+35817.6 -> 967,787.22
A38: Contribuciones al Seguro de Riesgo Laboral | B38: =987173.17+37939.2 -> 1,025,112.37
A39: Pensiones y Jubilaciones | B39: =+#REF! -> 
A40: Total sueldos, salarios y beneficios a empleados | B40: =B33+B34+B36+B37+B38 -> 41,259,001.71
A45: Suministro y Materiales para consumo (Nota 13)
A47: Detalle | B47: 2025
A49: pagos a suplidores | B49: 42,595,551.52
A50: Total Suministros y materiales para consumo
A51: Total Egreso | B51: =B40+B50 -> $41,259,001.71
A54: Sueldos, Salarios y beneficios a colaboradores (Nota 12)
A56: Ingreso por servicio de las ARS (Nota 12)
A59: Suministro y Materiales para consumo (Nota 13)
A69: Licda. Veronica pastranos
A70: Encargado de Contabilidad | B70: Kelvin modesto Segura Herasme
B71: Director Financiero

Sheet DEUDA DE MES DE DICIEMBRE 2025
B3: Deuda del Hospital G. de Especialidades Dr. Mario Tolentino Dipp mes de Diciembre 2025
B6: NOMBRE DE OFERETES | C6: DESCRIPCION | D6: ITEBIS 18% | E6: COMPROBANTE G | F6: FECHA DE FACT | G6: MONTO FACTURADO
A7: 1 | B7: TROPIGAS DOMINICANA | C7: ADQUISICION DE GLP PARA USO EN EL HOSPITAL | E7: E450000002058 | F7: 14/11/2025 | G7: $194,134.38
A8: 2 | B8: PLANETA AZUL | C8: ADQUISICION DE BOTELLONES DE AGUA PARA USO EN EL HOSPITAL | E8: E450000020711 | F8: 19/11/2025 | G8: $3,500.00
A9: 3 | B9: AIDSA ALINZA INNOVADORA DE SERVICIOS | C9: SERVICION DE RECOLECION DE DESECHOS BIOMEDICOS | E9: E450000000055 | F9: 14/11/2025 | G9: $150,000.00
A10: 4 | B10: PLANETA AZUL | C10: ADQUISICION DE BOTELLONES DE AGUA PARA USO EN EL HOSPITAL | E10: E450000020718 | F10: 26/11/2025 | G10: $3,220.00
A11: 5 | B11: GERENFAR, ARL | C11: ADQUISICION DE MEDICAMENTOS PARA USO EN EL HOSPITAL | E11: B1500001434 | F11: 2025-01-12 | G11: $1,242,000.00
A12: 6 | B12: OBELCA SRL | C12: SERVICION DE REPARACION DE CAMAS DE UCI PARA USO EN EL HOSPITAL | E12: B1500001016 | F12: 2025-01-12 | G12: $568,640.00
A13: 7 | B13: OBELCA SRL | C13: SERVICION DE REPARACION DE EQUIPOS MEDICOS PARA USO EN EL HOSPITAL | E13: B1500001017 | F13: 2025-01-12 | G13: $173,578.00
A14: 8 | B14: BIO-NOVA S.R.L | C14: ADQUISICION DE ROLLO DE PAPEL TERMICRO PARA EQUIPO DE EDAN PARA USO EN EL HOSPITAL | E14: E450000000115 | F14: 2025-01-12 | G14: $25,770.80
A15: 9 | B15: INFALAB, SRL | C15: ADQUISICION DE LENTE INTRA UCULARE PARA EL AREA DE CIRUJIA DE PFTAMOLOGIA | D15: $36,122.11 | E15: E450000000002 | F15: 20/11/2025 | G15: $236,800.49
A16: 10 | B16: INFALAB, SRL | C16: ADQUISICION DE LENTE INTRA UCULARE PARA EL AREA DE CIRUJIA DE PFTAMOLOGIA | D16: $118,014.66 | E16: E450000000005 | F16: 2025-01-12 | G16: $1,455,865.26
A17: 11 | B17: PROSEMEDINT | C17: SERVICION DE MONTAJE, DESMONTAJE, DE CRISTAL PARA ACTIVIDAD EN EL HOSPITAL | D17: $7,164.00 | E17: B1500000013 | F17: 2025-01-12 | G17: $46,964.00
A18: 12 | B18: PROSEMEDINT | C18: ADQUISICION DE PRODUCTOS DE DESPENSA PARA USO EN EL HOSPITAL | D18: $23,714.12 | E18: B1500000014 | F18: 2025-01-12 | G18: $460,978.12
A19: 13 | B19: CAPELLAN DENTAL | C19: ADQUISICION DE INSUMOS DE ODOCTOLOGIA PARA USO EN EL HOSPITAL | D19: $6,770.44 | E19: E450000000010 | F19: 2025-02-12 | G19: $44,384.00
A20: 14 | B20: LINEXI | C20: ADQUISICION DE INSUMOS MEDICOS PARA USO EN EL HOSPITAL | E20: B1500000036 | F20: 2025-02-12 | G20: $85,250.00
A21: 15 | B21: LINEXI | C21: ADQUISICION DE INSUMOS MEDICOS PARA USO EN EL HOSPITAL | E21: B1500000039 | F21: 2025-02-12 | G21: $247,800.00
A22: 16 | B22: ROJAS Y SERRANO | C22: ADQUISICION DE PROCTOS DE LIMPIEZA PARA USO EN EL HOSPITAL | D22: $10,153.19 | E22: B1500001479 | F22: 2025-01-12 | G22: $66,558.40
A23: 17 | B23: GRUPO CAR- M | C23: ADQUISICION DE MEDICAMENTOS PARA USO EN EL HOSPITAL | D23: $35,640.00 | E23: E450000000512 | F23: 2025-01-12 | G23: $233,640.00
A24: 18 | B24: GRUPO CAR- M | C24: ADQUISICION DE MEDICAMENTOS PARA USO EN EL HOSPITAL | D24: $35,640.00 | E24: E450000000514 | F24: 2025-02-12 | G24: $233,640.00
A25: 19 | B25: SEAN DOMINICANA | C25: ADQUISICION DE MEDICAMENTOS PARA USO EN EL HOSPITAL | E25: E450000000340 | F25: 2025-01-12 | G25: $1,490,000.00
A26: 20 | B26: BIO-NOVA S.R.L | C26: ADQUISICION DE LAMPARA DE VISUALIZACION SEROLOGIA PARA USO EN EL HOSPITAL | D26: $11,695.50 | E26: E450000000116 | F26: 2025-01-12 | G26: $76,670.50
A27: 21 | B27: DUMAS MEDICAL, SRL | C27: ADQUISICION DE CITICOLINA DE 500 MG/4 PARA USO EN EL HOSPITAL | E27: B1500000107 | F27: 2025-02-12 | G27: $240,000.00
A28: 22 | B28: DUMAS MEDICAL, SRL | C28: ADQUISICION DE AZITROMICINA 500M/G TABLETA PARA USO EN EL HOSPITAL | E28: B1500000072 | F28: 2025-01-12 | G28: $243,000.00
A29: 23 | B29: DUMAS MEDICAL, SRL | C29: ADQUISICION DE KIT NEBULIZADOR (T) AEROSOL PARA USO EN EL HOSPITAL | E29: B1500000103 | F29: 2025-01-12 | G29: $33,040.00
A30: 24 | B30: DUMAS MEDICAL, SRL | C30: ADQUISICION DE ACIDO ASCORBICO ( VITAMINA C) 500 ML AMP PARA USO EN EL HOSPITAL | E30: B1500000102 | F30: 2025-01-12 | G30: $160,000.00
A31: 25 | B31: DUMAS MEDICAL, SRL | C31: ADQUISICION DE LEVETIRACETAM 500 ML APM.L.V PARA USO EN EL HOSPITAL | E31: B1500000104 | F31: 2025-01-12 | G31: $241,150.00
A32: 26 | B32: HOSPITRONICA, SRL | C32: SERVICIO DE REPARACION DE SINCRONIZADOR EN EL HDMTD | D32: $142,650.00 | E32: B1500000190 | F32: 2025-02-12 | G32: $935,150.00
A33: 27 | B33: HOSPITRONICA, SRL | C33: SERVICIO DE REPARACION DE PREVENTIVO DE VENTILADOR MINDRAY EN EL HDMTD | D33: $36,152.55 | E33: B1500000191 | F33: 2025-02-12 | G33: $237,000.03
A34: 28 | B34: TROPIGAS DOMINICANA SRL | C34: ADQUISICION DE GLP PARA USO EN EL HOSPITAL | E34: E4500003600 | F34: 2025-01-12 | G34: $164,598.25
A35: 29 | B35: MASTE CLEAN | C35: ADQUISICION DE DESECHABLES PARA USO EN EL HOSPITAL | D35: $35,775.00 | E35: B1500000671 | F35: 2025-01-12 | G35: $234,525.00
A36: 30 | B36: GREEMEX, S.R.L | C36: ADQUISICION DE RESMAS DE PAPEL TIMBRADA PARA USO EN EL HOSPITAL | D36: $36,900.00 | E36: B1500000030 | F36: 2025-02-12 | G36: $241,900.00
A37: 31 | B37: VAL-KAMED | C37: ADQUISICIONGLUCONATO, BICARBONATO Y ACIDO ACETILICILICO PARA USO EN EL HOSPITAL | E37: E450000000138 | F37: 2025-02-12 | G37: $242,286.00
A38: 32 | B38: FULINSERVIS SRL | C38: ADQUISICION DE PORTA CARNET, TARJETA, LANDYARD PARA USO EN EL HOSPITAL | D38: $37,252.80 | E38: B1500000435 | F38: 2025-03-12 | G38: $244,212.80
A39: 33 | B39: SOLUCORP | C39: SERVICION DE MANTENIMIENTO DE 5 ELEVADORES PARA USO EN EL HOSPITAL | D39: $48,380.00 | E39: B1500000410 | F39: 2025-03-12 | G39: $48,380.00
A40: 34 | B40: PROVECAR | C40: SERVICIO DE MANTENIMIENTO DE MANEJAJADORAS PARA USO EN EL HOSPITAL | D40: $14,669.49 | E40: B1500000324 | F40: 2025-03-12 | G40: $96,166.00
A41: 35 | B41: PROMESE-CAL | C41: ADQUISICION DE MEDICAMENTOS PARA USO EN EL HOSPITAL | E41: B1500049701 | F41: 21/11/2025 | G41: $205,176.00
A42: 36 | B42: PROMESE-CAL | C42: ADQUISICION DE MEDICAMENTOS PARA USO EN EL HOSPITAL | E42: B1500049702 | F42: 21/11/2025 | G42: $112,776.00
A43: 37 | B43: PROMESE-CAL | C43: ADQUISICION DE MEDICAMENTOS PARA USO EN EL HOSPITAL | E43: B1500049720 | F43: 21/11/2025 | G43: $3,173,198.36
A44: 38 | B44: PROMESE-CAL | C44: ADQUISICION DE MEDICAMENTOS PARA USO EN EL HOSPITAL | E44: B1500049721 | F44: 21/11/2025 | G44: $3,263,570.36
A45: 39 | B45: PROMESE-CAL | C45: ADQUISICION DE MEDICAMENTOS PARA USO EN EL HOSPITAL | E45: B1500049771 | F45: 24/11/2025 | G45: $872,974.00
A46: 40 | B46: PROMESE-CAL | C46: ADQUISICION DE MEDICAMENTOS PARA USO EN EL HOSPITAL | E46: B1500049777 | F46: 24/11/2025 | G46: $670,216.96
A47: 41 | B47: AIDSA ALINZA INNOVADORA DE SERVICIOS | C47: SERVICION DE RECOLECION DE DESECHOS BIOMEDICOS EN EL HOSPITAL | E47: E45000000081 | F47: 2025-04-11 | G47: $150,000.00
A48: 42 | B48: OBELCA SRL | C48: ADQUISICION DE PAPEL HIGUIENICON PARA USO EN EL HOSPITAL | E48: B1500001020 | F48: 2025-05-12 | G48: $130,685.00
A49: 43 | B49: REFRIASU | C49: ADQUISICION DE INSTALACION DE HIERRO PARA VENTANAS Y CORTINA PARA EL AREA DE PABELLO DE PSIQUIATRIA DE HOSPITAL | D49: $37,675.01 | E49: B1500000334 | F49: 2025-05-12 | G49: $346,980.61
A50: 44 | B50: UVRO | C50: SERVICIO DE TRANSPORTE CAMION PARA RETIRO DE MEDICAMENTOS PARA EL HOSPITAL | E50: B1500000517 | F50: 24/11/2025 | G50: $10,500.00
A51: 45 | B51: UVRO | C51: SERVICIO DE TRANSPORTE CAMION PARA RETIRO DE MEDICAMENTOS PARA EL HOSPITAL | E51: B1500000516 | F51: 24/11/2025 | G51: $21,000.00
A52: 46 | B52: UVRO | C52: SERVICIO DE TRANSPORTE CAMION PARA RETIRO DE MEDICAMENTOS PARA EL HOSPITAL | E52: B1500000523 | F52: 2025-05-12 | G52: $10,500.00
A53: 47 | B53: PLANETA AZUL | C53: ADQUISICION DE BOTELLONES DE AGUA PARA USO EN EL HOSPITAL | E53: E450000020885 | F53: 2025-04-12 | G53: $4,340.00
A54: 48 | B54: AIR LIQUEDE | C54: ADQUISICION DE OXIGENO MEDICINAL PARA USO EN EL HOSPITAL | D54: $257,589.31 | E54: E450000004015 | F54: 2025-04-12 | G54: $1,688,641.05
A55: 49 | B55: PEREZ Y PUJOLS | C55: ADQUISICION DE MEDICAMENTOSAMIODARONA 150MG PARA USO EN EL HOSPITAL | E55: B1500000514 | F55: 2025-08-12 | G55: $42,000.00
A56: 50 | B56: SECOND HAND IMPORTA LEAN S.R.L | C56: SERVICION DE REPARACION DE AUTOCLAVE PARA USO EN EL HOSPITAL | D56: $15,030.00 | E56: B1500000053 | F56: 2025-08-12 | G56: $98,530.00
A57: 51 | B57: FUMIFACION FUMIDEX SRL | C57: SERVICIOS DE FUMIGACION DE CONTROL DE PLAGAS EN EL HOSPITAL | D57: $17,064.00 | E57: B1500000128 | F57: 2025-02-12 | G57: $111,864.00
A58: 52 | B58: LATIN AMERICAN MEDICAL EXPORT | C58: ADQUISICION DE CASSETTE PARA FOCAEMULSIFICACION Y PUNTA PARA VITRECTOMIA ANTERIOR 23G PARA EL HOSPITAL | D58: $19,307.32 | E58: E4500000000039 | F58: 2025-08-12 | G58: $126,570.22
A59: 53 | B59: OBELCA SRL | C59: SERVICION DE MANTENIMIENTO ANUAL PARA AUTOCLAVE FUERA DE SERVICIO | D59: $69,984.00 | E59: B1500001023 | F59: 2025-08-12 | G59: $458,784.00
A60: 54 | B60: OBELCA SRL | C60: SERVICIO DE REPARACION DE ASCENSOR DE ESTE HOSPITAL | D60: $13,860.00 | E60: B1500001022 | F60: 2025-05-12 | G60: $90,860.00
A61: 55 | B61: OBELCA SRL | C61: ADQUISICION DE BEBEDEROS PARA USO EN ESTE HOSPITAL | D61: $31,392.00 | E61: B1500001021 | F61: 2025-05-12 | G61: $205,792.00
A62: 56 | B62: CEINTEC | C62: ADQUISICION DE REACTIVOS SOIN 640, MAGLUMI 800, MINDRAY 5380,Y MINDRAY 6200 PARA USO EN EL LABORATORIO DE HDMTD | D62: $510.30 | E62: E450000000035 | F62: 2025-08-12 | G62: $1,146,014.30
A63: 57 | B63: AYUNTAMIENTO SANTO DOMINGO NORTE | C63: SERVICION DE RECOLECCION DE DESECHOS SOLIDOS EN EL HOSPITAL | E63: B1500001683 | F63: 2025-11-01 | G63: $25,000.00
A64: 58 | B64: AYUNTAMIENTO SANTO DOMINGO NORTE | C64: SERVICION DE RECOLECCION DE DESECHOS SOLIDOS EN EL HOSPITAL | E64: B1500001708 | F64: 2025-12-01 | G64: $25,000.00
A65: 59 | B65: REFRIASU | C65: SERVICIO DE ADECUANDION DE AREA DEL PABELLON PSIQUIATRICO EN EL HOSPITAL | E65: B1500000336 | F65: 2025-12-10 | G65: $1,668,579.00
A66: 60 | B66: GRUPO ANTACE SRL | C66: ADQUISICION DE BOWL SANCOCHERO PARA USO EN EL HOSPITAL | D66: $20,880.00 | E66: B1500000514 | F66: 2025-12-11 | G66: $136,880.00
A67: 61 | B67: PLANETA AZUL | C67: ADQUISICION BOTELLONES DE AGUA PARA USO EN EL HOSPITAL | D67: $2,380.00 | E67: E450000021292 | F67: 2025-12-10 | G67: $2,380.00
A68: 62 | B68: SEVEV SERVICIOS GENERALES, SRL | C68: ADQUISICION Y APLICACIÓN DE PINTURA PARA FACCHADA FRONTAL DEL HOSPITAL | D68: $233,004.60 | E68: B1500000144 | F68: 15/12/2025 | G68: $1,527,474.60
A69: 63 | B69: GRUPO PICAMP | C69: ADQUISICION DE ALIMENTOS DE COCINA PARA ESTE HOSPITAL | E69: B1500000045 | F69: 15/12/2025 | G69: $173,208.00
A70: 64 | B70: HCJ LOGISTICS SRL | C70: SERVICIO DE SUMINISTRO INSTALACION DE CONTROL DE ACCESO PARA LA DIFERENTES PUESTAS EN EL HOSPITAL | D70: $115,122.49 | E70: B1500000182 | F70: 2025-12-01 | G70: $754,691.86
A71: 65 | B71: TONER DEPOT | C71: ADQUISICION DE INSTALACION DE IMPRESORA Y TONER PARA USO EN EL HOSPITAL | D71: $60,284.86 | E71: E450000000593 | F71: 15/12/2025 | G71: $395,200.76
A72: 66 | B72: GRUPO IRMACELI SERVICES, SRL | C72: ADQUISICION DE RESMAS DE PAPEL BOND PARA USO EN EL HOSPITAL | D72: $28,677.60 | E72: B1500000302 | F72: 15/12/2025 | G72: $187,997.60
A73: 67 | B73: HOSPITRONICA, SRL | C73: SERVICION DE REPARACION DE TOMOGRAFO EN EL AREA DE IMÁGENES DE HOSPITAL | D73: $24,660.00 | E73: B1500000192 | F73: 15/12/2025 | G73: $161,660.00
A74: 68 | B74: HOSPITRONICA, SRL | C74: SERVICION DE MANTENIMIENTOS DE RESONADO EN EL AREA DE IMÁGENES DEL HOSPITAL | D74: $26,100.00 | E74: B1500000193 | F74: 15/12/2025 | G74: $171,100.00
A75: 69 | B75: SERVICIOS GASTRONOMICO HEMANOS PIRON | C75: SERVICIO DE BUFETT PARA 130 PERSONAS PARA ESTE HOSPITAL | D75: $94,400.00 | E75: B1500000007 | F75: 2025-09-12 | G75: $94,400.00
A76: 70 | B76: SERVICIOS GASTRONOMICO HEMANOS PIRON | C76: SERVICION DE ALQUILER CRISTALERIA , CUBERTERIA , SILLAS MESAS Y TRANSPORTE PARA ACTIVIDAD DE ESTE HOSPITAL | D76: $51,896.40 | E76: B1500000014 | F76: 13/12/2025 | G76: $51,896.40
A77: 71 | B77: SERVICIOS GASTRONOMICO HEMANOS PIRON | C77: SERVICION DE BUFETT DE AMUERZO, PICADERA Y CHOCOLATE PARA HOSPITAL | D77: $17,370.00 | E77: B1500000008 | F77: 2025-09-12 | G77: $113,870.00 | O77: 2025-12-12
A78: 72 | B78: SERVICIOS GASTRONOMICO HEMANOS PIRON | C78: SERVICIO BUFFET PARA ACTIVIDAD CON ENCARGADO CORDINARES Y SEPERVISORES DEL HOSPITAL | D78: $29,988.13 | E78: B1500000015 | F78: 13/12/2025 | G78: $196,588.83
A79: 73 | B79: SEMINSA | C79: ADQUISICION DE ESPIROMETRO PORTATIL CON BLUETOOTH PARA USO EN EL HOSPITAL | D79: $16,631.89 | E79: E450000000190 | F79: 2025-12-12 | G79: $109,031.27
A80: 74 | B80: RASA ORT SRL | C80: ADQUISICION DE BANDEJA DE CIRUJIA DE LARINGE, AMIGDALA Y OIDO PARA USO EN EL HOSPITAL | D80: $125,028.69 | E80: B1500000015 | F80: 16/12/2025 | G80: $838,469.11
A81: 75 | B81: RASA ORT SRL | C81: ADQUISICION DE BANDEJA DE SEPTOPLASTIA PARA USO EN EL HOSPITAL | D81: $74,299.86 | E81: B15000000016 | F81: 16/12/2025 | G81: $487,076.46
A82: 76 | B82: JS TECNOLOGIES | C82: ADQUISICION DE BANDEJA HISTERECTOMIA VAGINAL PARA USO EN EL HOSPITAL | D82: $21,371.27 | E82: B15000000041 | F82: 16/12/2025 | G82: $140,100.67
A83: 77 | B83: JS TECNOLOGIES | C83: ADQUISICION DE BANDEJA COLPOPERINORRAFIA PARA USO EN EL HOSPITAL | D83: $16,629.58 | E83: B15000000042 | F83: 16/12/2025 | G83: $109,016.07
A84: 78 | B84: JS TECNOLOGIES | C84: ADQUISICIONDE BANDEJA LEGRADO PARA USO EN EL HOSPITAL | D84: $12,435.20 | E84: B15000000043 | F84: 16/12/2025 | G84: $81,073.08
A85: 79 | B85: PROVECAR | C85: ADQUISICION DE SABANAS TWIS HIPOALERGENICA Y CUBRE COLCHONES TWIN HIPOALERGENICO PARA USO EN EL HOSPITAL | D85: $69,480.00 | E85: B1500000326 | F85: 15/12/2025 | G85: $455,480.00
A86: 80 | B86: ATHRIVEL, SRL | C86: ADQUISICION DE VIVERES PARA USO DEL HOSPITAL | E86: B1500000106 | F86: 15/12/2025 | G86: $548,455.00
A87: 81 | B87: OBELCA SRL | C87: SERVICION DE REPARACION Y MANTENIMIENTO DE EQUIPAMIENTO DEL AREA DE LA COCINA DE HOSPITAL | D87: $37,530.00 | E87: B1500001035 | F87: 15/12/2025 | G87: $246,030.00
A88: 82 | B88: TROPIGAS DOMINICANA SRL | C88: ADQUISICION DE GLP PARA USO EN EL HOSPITAL | E88: E450000018111 | F88: 15/12/2025 | G88: $124,981.88
A89: 83 | B89: PASOFRI, SRL | C89: ADQUISICIOJN DE MAQUINA DE TERAPIA ELETROCOVULSIVA PARA USO EN EL HOSPITAL | D89: $11,700.00 | E89: B1500000350 | F89: 16/12/2025 | G89: $76,700.00
A90: 84 | B90: GERENFAR, ARL | C90: ADQUISICION DE LABETALOL INV PARA USO EN EL HOSPITAL | E90: B1500001470 | F90: 18/12/2025 | G90: $1,370,000.00
A91: 85 | B91: GRUPO CAR-M | C91: ADQUISICION DE NEBUDINA(bromuro de ipatropio) PARA USO EN EL HOSPITAL | E91: E450000000570 | F91: 17/12/2025 | G91: $468,000.00
A92: 86 | B92: GRUPO CAR-M | C92: ADQUISICION DE VEMEPILEM ( LEVETIRACETAM ) PARA USO EN EL HOSPITAL | E92: E450000000573 | F92: 18/12/2025 | G92: $455,000.00
A93: 87 | B93: SEAN DOMINICANA SRL | C93: ADQUISICION DE CLORURO SODICO 0.9 INV PARA USO EN EL HOSPITAL | E93: E450000000387 | F93: 2025-12-18 | G93: $359,780.00
A94: 88 | B94: PROSEMEDINT | C94: ADQUISICION DE CARNES PARA USO EN LA COCINA DEL HOSPITAL | E94: B1500000016 | F94: 2025-12-18 | G94: $217,877.00
A95: 89 | B95: OBELCA SRL | E95: B1500001041 | F95: 2025-12-19 | G95: $485,003.60
A96: 90 | B96: VAL-KAMED | C96: ADQQUISICION DE JERIGUILLAS PARA USO EN EL HOSPITAL | D96: $29,250.00 | E96: E450000000169 | F96: 2025-12-19 | G96: $191,750.00
F97: TOTAL DEL MES | G97: =SUM(G7:G96) -> $35,791,526.08
B103: Licda: veronica pastranos peña | D103: Kelvinn modesto segura
B104: Encargado de Contabilidad | D104: Director Financiero

Sheet PAGO DEL MES DE DICIEMBRE 2025
A2: =+L3 -> 0
A9: HOSPITAL GENERAL DE ESPECIALIDADES MARIO TOLENTINO DIPP
A10: RELACION DE LIBRAMIENTO DE DICIEMBRE EN PROCESO EN EL HOSPITAL DR. MARIO TOLENTINO DIPP 2025
A12: LIBRAMIENTO | B12: NO. | C12: NOMBRE DE OFERENTES | D12: DESCRIPCION | E12: NO. ORDEN DE COMPRA | F12: FONDO | G12: FECHA FACTURA | H12: COMPROBANTE GUBERNAMENTAL | I12: ITEBIS 18% | J12: MONTO FACTURA PENDIENTE RD$
A13: 2684 | C13: INVERSIONES SARALI | D13: SERVICIO DE CONFECCION DE MURO | E13: HDMTD-DAF-CM-2025-0025 | F13: 121 | G13: 2025-09-02 | H13: B1500000018 | I13: $6,043.35 | J13: $419,004.77
A14: 2826 | C14: DECAL ENTERPRISES, SRL | D14: ADQUISICION DE ALFOMBRA PARA USO DEL HOSPITAL | E14: HDMTD-DAF-CD-2025-0187 | F14: 121 | G14: 4/11/2025/ | H14: B1500000003 | I14: $37,692.00 | J14: $247,092.00
A15: 2830 | C15: MORAMI | D15: ADQUISICION DE CANULA DE MAYO | E15: HDMTD-DAF-CD-2025-0204 | F15: 121 | G15: 2025-11-04 | H15: E4500000000225 | I15: $37,372.32 | J15: $244,996.32
A16: 2842 | C16: IMPRESOS CYM | D16: ADQUISICION DE LAPICERO CON LOGOS Y PLACAS | E16: HDMTD-DAF-CD-2025-0154 | F16: 102 | G16: 2025-09-03 | H16: B15000000414 | I16: $12,618.00 | J16: $82,718.00
A17: 2885 | C17: SEAN DOMINICANA | D17: ADQUISICION DE MIDAZOLAM | E17: HDMTD-DAF-CD-2025-0217 | F17: 121 | G17: 2025-11-14 | H17: E450000000305 | J17: $238,400.00
A18: 2911 | C18: SECOND HAND IMPORTA LEAN, SRL | D18: ADQUISICION DE DE INSUMOS COMESTIBLE PARA EL HOSPITAL | E18: HDMTD-DAF-CM-2025-0120 | F18: 121 | G18: 2025-11-04 | H18: B1500000050 | I18: $12,876.48 | J18: $287,457.48
A19: 2925 | C19: SENCOMD HAND IMPORTA LEAN | D19: ADQUISICION DE SAL TIPO PELLETS | E19: HDMTD-DAF-CM-2025-0129 | F19: 121 | G19: 2025-11-06 | H19: B1500000051 | I19: $66,420.00 | J19: $435,420.00
A20: 2931 | C20: GREEMEX | D20: ADQUISICION DE PAPEL BORD | E20: HDMTD-DAF-CD-2025-0201 | F20: 121 | G20: 2025-11-11 | H20: B150000028 | I20: $36,367.20 | J20: $238,407.20
A21: 2935 | C21: TROPIGAS DOMINICANA | D21: SERVICIOS DE LLENADOS DE DOS TANQUUE GLP | E21: HDMTD-DAF-CCC-PEEX-2025-0006 | F21: 121 | G21: 2025-11-03 | H21: E450000002056 | J21: $92,540.00
A22: 2953 | C22: AGUAVIVAS | D22: SERVICIO DE CULTIVOS PARA AGUA | E22: HDMTD-DAF-CD-2025-0107 | F22: 102 | G22: 2025-08-01 | H22: B1500000447 | J22: $170,400.00
A23: 2967 | C23: BIO NUCLEAR | D23: SISTEMA DE GESTION PARA LABORATORIO | E23: HDMTD-DAF-CM-2025-0142 | F23: 102 | G23: 2025-10-27 | H23: E450000008761 | J23: $300,000.00
A24: 2969 | C24: SAVEV SERVICIOS GENERALES | D24: SERVICIO DE MANTENIMIENTO ANUAL | E24: HDMTD-DAF-CM-2025-0121 | F24: 102 | G24: 2025-11-13 | H24: B1500000142 | I24: $99,222.48 | J24: $650,458.48
A25: 2975 | C25: TONER DEPORT | D25: SERVICIO DE MANTENIMIENTO | E25: HDMTD-DAF-CM-2025-0123 | F25: 102 | G25: 2025-11-14 | H25: E45000000490 | I25: $41,452.85 | J25: $271,746.40
A26: 2979 | C26: MODO CREATIVO MCDSP, SRL | D26: SERVICIO DE EMAIL HOSTING PARA CORREO INSTITUCIONAL | E26: HDMTD-DAF-CD-2025-0221 | F26: 102 | G26: 2025-11-14 | H26: B1500000107 | I26: $31,100.00 | J26: $230,100.00
A27: 2981 | C27: PROGRAMA DE MEDICAMENTOS ESENCIALES | D27: ADQUISICION DE MEDICAMENTOS | E27: N/A | F27: 102 | G27: 2025-10-03 | H27: B1500048554 | J27: $369,409.00
A28: 2981 | C28: PROGRAMA DE MEDICAMENTOS ESENCIALES | D28: ADQUISICION DE MEDICAMENTOS | E28: N/A | F28: 102 | G28: 2025-10-03 | H28: B1500048555 | J28: $55,176.00
A29: 2981 | C29: PROGRAMA DE MEDICAMENTOS ESENCIALES | D29: ADQUISICION DE MEDICAMENTOS | E29: N/A | F29: 102 | G29: 2025-10-03 | H29: B1500048556 | J29: $196,776.00
A30: 2981 | C30: PROGRAMA DE MEDICAMENTOS ESENCIALES | D30: ADQUISICION DE MEDICAMENTOS | E30: N/A | F30: 102 | G30: 2025-10-03 | H30: B1500048558 | J30: $3,527,303.06
A31: 2981 | C31: PROGRAMA DE MEDICAMENTOS ESENCIALES | D31: ADQUISICION DE MEDICAMENTOS | E31: N/A | F31: 102 | G31: 2025-10-27 | H31: B1500049147 | J31: $282,090.00
A32: 2981 | C32: PROGRAMA DE MEDICAMENTOS ESENCIALES | D32: ADQUISICION DE MEDICAMENTOS | E32: N/A | F32: 102 | G32: 2025-10-27 | H32: B1500049149 | J32: $130,200.00
A33: 2981 | C33: PROGRAMA DE MEDICAMENTOS ESENCIALES | D33: ADQUISICION DE MEDICAMENTOS | E33: N/A | F33: 102 | G33: 2025-10-29 | H33: B1500049242 | J33: $708,882.64
A34: 2986 | C34: TU AMIGO | D34: COMBUSTIBLE DIESEL | E34: HDMTD-DAF-CM-2025-0048 | F34: 100 | G34: 2025-11-03 | H34: B1500000318 | J34: $796,400.00
A35: 2990 | C35: B NETWORK | D35: ADQUISICION, INSTALACION Y CONFIGURACION DE SWITC | E35: HDMTD-DAF-CM-2025-0136 | F35: 102 | G35: 2025-11-03 | H35: B1500000030 | I35: $257,801.40 | J35: $1,690,031.40
A36: 2993 | C36: CAPELLAN DENTAL, SRL | D36: ADQUISICION DE INSUMOS DE ODONTOLOGIA DE ESTE HOSPITAL | E36: HDMTD-DAF-CD-2025-0164 | F36: 121 | G36: 2025-10-02 | H36: B1500002645 | I36: $29,144.55 | J36: $233,356.66
A37: 2999 | C37: CARU-TRADE S.R.L | D37: ADQUISICION DE PRODUCTOS | E37: HDMTD-DAF-CM-2025-0134 | F37: 102 | G37: 2025-11-03 | H37: B1500000004 | I37: $63,284.40 | J37: $414,864.40
A38: 3003 | C38: VAL-KAMED PHARMA | D38: ADQUISICION DE NITROGLICERINA ETC | E38: HDMTD-DAF-CD-2025-0208 | F38: 102 | G38: 2025-11-04 | H38: E450000000095 | J38: $245,867.20
A39: 3007 | C39: FARMADAL | D39: ADQUISICION DE REACTIVO | E39: HDMTD-DAF-CD-2025-0198 | F39: 121 | G39: 2025-11-07 | H39: E450000000065 | J39: $149,388.00
A40: 3011 | C40: OBELCA | D40: ADQUISICION DE FAJAS INDUSTRIAL | E40: HDMTD-DAF-CD-2025-0195 | F40: 121 | G40: 2025-11-07 | H40: B1500000998 | I40: $14,976.00 | J40: $98,176.00
A41: 3015 | C41: MASTER CLEAN FBE IMPOT, SRL | D41: ADQUISICION DE PRODUCTOS DE LIMPIEZA PARA EL HOSPITAL | E41: HDMTD-DAF-CM,-2025-0134 | F41: 102 | G41: 2025-11-04 | H41: B1500000649 | I41: $132,721.20 | J41: $870,061.20
A42: 3019 | C42: PROVECAR | D42: ADQUISICION DE PLAFONES | E42: HDMTD-DAF-CM-2025-0122 | F42: 102 | G42: 2025-11-04 | H42: B1500000315 | I42: $57,060.00 | J42: $374,060.00
A43: 3023 | C43: ABRIAS NOVO GROUP | D43: ADQUISICION DE INSTALACION Y ELABORACION DE ARBOL DE NAVIDAD | E43: HDMTD-DAF-CD-2025-0200 | F43: 102 | G43: 2025-11-05 | H43: B1500000169 | I43: $36,618.00 | J43: $240,053.30
A44: 3027 | C44: CAPELLAN DENTAL, SRL | D44: ADQUISICION DE UNIDADES DENTALES | E44: HDMTD-DADF-CD-2025-0088 | F44: 102 | G44: 2025-10-02 | H44: B150002646 | I44: $44,028.00 | J44: $288,628.00
A45: 3031 | C45: LINEXI INSUMOS MEDICOS, SRL | D45: ADQUISICION DE DUODERM Y LIDOCAINAEN SPREY PARA EL HOSPITAL | E45: HDMTD-DAF-CD-2025-0217 | F45: 102 | G45: 2025-12-13 | H45: B1500000035 | J45: $130,000.00
A46: 3035 | C46: RAMISOL | D46: ADQUISICION DE CEPILLO | E46: HDMTD-DAF-CD-2025-0205 | F46: 102 | G46: 2025-11-04 | H46: E450000000344 | I46: $37,710.00 | J46: $247,210.00
A47: 3040 | C47: HOSPITRONICA | D47: SERVCIOS MANTENIMIENTOS DE CALIBRE | E47: HDMTD-DAF-CD-2025-0196 | F47: 102 | G47: 2025-11-12 | H47: B1500000177 | I47: $16,650.00 | J47: $109,150.00
A48: 3044 | C48: TROPIGAS DOMINICANA | D48: SERVICIO DEL LLEADO | E48: HDMTD-CC-PEEX-2025-0012 | F48: 121 | G48: 2025-11-14 | H48: E4500000002058 | J48: $194,134.38
A49: 3054 | C49: PLANETA AZUL | D49: SERVICIO DE BOTELLONES DE AGUA | E49: HDMTD-DAF-CD-2025-0119 | F49: 121 | G49: 2025-10-10 | H49: E4500000019465 | J49: $3,640.00
A50: 3054 | C50: PLANETA AZUL | D50: SERVICIO DE BOTELLONES DE AGUA | E50: HDMTD-DAF-CD-2025-0119 | F50: 121 | G50: 2025-10-10 | H50: E450000019473 | J50: $3,500.00
A51: 3054 | C51: PLANETA AZUL | D51: SERVICIO DE BOTELLONES DE AGUA | E51: HDMTD-DAF-CD-2025-0119 | F51: 121 | G51: 2025-10-18 | H51: E450000019480 | J51: $4,270.00
A52: 3054 | C52: PLANETA AZUL | D52: SERVICIO DE BOTELLONES DE AGUA | E52: HDMTD-DAF-CD-2025-0119 | F52: 121 | G52: 2025-10-23 | H52: E450000020158 | J52: $2,170.00
A53: 3054 | C53: PLANETA AZUL | D53: SERVICIO DE BOTELLONES DE AGUA | E53: HDMTD-DAF-CD-2025-0119 | F53: 121 | G53: 2025-10-30 | H53: E450000020163 | J53: $3,500.00
A54: 3054 | C54: PLANETA AZUL | D54: SERVICIO DE BOTELLONES DE AGUA | E54: HDMTD-DAF-CD-2025-0119 | F54: 121 | G54: 2025-11-11 | H54: E450000020701 | J54: $2,730.00
A55: 3054 | C55: PLANETA AZUL | D55: SERVICIO DE BOTELLONES DE AGUA | E55: HDMTD-DAF-CD-2025-0119 | F55: 121 | G55: 2025-11-13 | H55: E450000020704 | J55: $3,710.00
A56: 3054 | C56: PLANETA AZUL | D56: SERVICIO DE BOTELLONES DE AGUA | E56: HDMTD-DAF-CD-2025-0119 | F56: 121 | G56: 2025-11-19 | H56: E450000020711 | J56: $3,500.00
A57: 3054 | C57: PLANETA AZUL | D57: SERVICIO DE BOTELLONES DE AGUA | E57: HDMTD-DAF-CD-2025-0119 | F57: 121 | G57: 2025-11-26 | H57: E450000002078 | J57: $3,220.00
A58: 3055 | C58: GRUPO IRMACELI SERVICIOS, SRL | D58: ADQUISICION DE RECETARIOS MEDICOS PARA EL HOSPITAL. | E58: HDMTD-DAF-CD-2025-0194 | F58: 121 | G58: 11/112025 | H58: B1500000294 | I58: $36,000.00 | J58: $236,000.00
A59: 3079 | C59: ROPHARMA, SRL | D59: ADQUISICION DE LABETALOL PARA EL HOSPITAL. | E59: HDMTD-DAF-CM-2025-0111 | F59: 102 | G59: 2025-11-04 | H59: B1500001476 | J59: $1,182,000.00
A60: 3083 | C60: MORAMI | D60: ADQUISICION DE APOSITO Y PAQUETES DE OCULAR DEL HOSPITAL | E60: HDMTD-DAF-CD-2025-0179 | F60: 102 | G60: 10/9/2025/ | H60: E450000000155 | I60: $16,056.00 | J60: $234,256.00
A61: 3093 | C61: GRUPO FARMACEUTICO CAR-M, SRL | D61: ADQUISICION DE KIT DE LAPARATOMIA PARA USO DE ESTE HOSPITAL. | E61: HDMTD-DAF-CM-2025-0233 | F61: 426 | G61: 2025-12-01 | H61: E4500000512 | I61: $35,640.00 | J61: $233,640.00
A62: 3098 | C62: OBELCA, SRL | D62: ADQUSICION DE REPARACION DE EQUIPOS MEDICOS | E62: HDMTD-DAF-CD-2025-0242 | F62: 121 | G62: 01/11//2025 | H62: B1500001017 | I62: $26,478.00 | J62: $173,578.00
A63: 3105 | C63: VAL-KAMED PHARMA, SRL | D63: ADQUISICION DE BROMURO DE IPATROPIO PARA EL HOSPITAL | E63: HDMTD-DAF-CD-2025-0219 | F63: 102 | G63: 2025-11-13 | H63: E450000000106 | J63: $243,930.00
A64: 3112 | C64: BIO NOVA, SRL | D64: ADQUISICION DE INSTRUMENTO DE LABORATORIO | E64: HDMTD-DAF-CM-2025-0146 | F64: 121 | G64: 2025-12-01 | H64: E450000000116 | I64: $11,695.50 | J64: $76,670.50
A65: 3122 | C65: BIO NOVA, SRL | D65: ADQUISICION DE REACTIVO Y MATERIAL PARA USO DEL HOSPITAL | E65: HDMTD-DAF-CD-2025-0241 | F65: 121 | G65: 2025-12-01 | H65: E450000000115 | I65: $550.80 | J65: $25,770.80
A66: 3126 | C66: SOLUCORP | D66: SERVICIO DE REPARCION Y MANTENIMIENTO | E66: HDMTD-DAF-CM-2025-0099 | F66: 100 | G66: 2025-12-03 | H66: B1500000410 | I66: $7,380.00 | J66: $48,380.00
A67: 3130 | C67: UVRO SOLUCIONES | D67: SERVICIO DE AQUILER DE TRASPORTE | E67: HDMTD-DAF-CD-2025-0105 | F67: 121 | G67: 2025-11-24 | H67: B1500000517 | J67: $10,500.00
A68: 3135 | C68: INFALAB | D68: ADQUISICION DE INSUMOS PARA USO EN OFTAMOLOGIA | E68: HDMTD-DAF-CM-2025-0153 | F68: 102 | G68: 2025-12-01 | H68: E450000000005 | I68: $118,014.66 | J68: $1,455,865.26
A69: 3138 | C69: OBELCA, SRL | D69: ADQUISICION DE PAPEL HIGIENICO PARA EL HOSPITAL | E69: HDMTD-DAF-CD-2025-0129 | F69: 121 | G69: 2025-12-05 | H69: B1500001020 | I69: $19,935.00 | J69: $130,685.00
A70: 3142 | C70: PROSERMEDINT, SRL | D70: ADQUISICION DE ALIMENTOS PARA EL HOSPITAL | E70: HDMTD-DAF-CM-2025-0110 | F70: 102 | G70: 2025-12-01 | H70: B1500000014 | I70: $23,714.12 | J70: $460,978.12
A71: 3144 | C71: AYUNTAMIENTO DE SANTO DOMINGO | D71: ADQUISICION DE DESECHO SOLIDO DEL HOSPITAL | E71: N/A | F71: 102 | G71: 2025-11-01 | H71: B1500001683 | J71: $25,000.00
A72: 3144 | C72: AYUNTAMIENTO DE SANTO DOMINGO | D72: ADQUISICION DE DESECHO SOLIDO DEL HOSPITAL | E72: N/A | F72: 102 | G72: 2025-12-01 | H72: B1500001708 | J72: $25,000.00
A73: 3165 | C73: PROGRAMA DE MEDICAMENTOS ESENCIALES | D73: ADQUISICION DE MEDICAMENTOS | E73: N/A | F73: 102 | G73: 2025-11-21 | H73: B1500049702 | J73: $112,776.00
A74: 3165 | C74: PROGRAMA DE MEDICAMENTOS ESENCIALES | D74: ADQUISICION DE MEDICAMENTOS | E74: N/A | F74: 102 | G74: 2025-11-24 | H74: B1500049771 | J74: $872,974.00
A75: 3167 | C75: DUMAS MEDICAL | D75: ADQUISICION DE AZITROMICINA | E75: HDMTD-DAF-CD-2025-0222 | F75: 102 | G75: 2025-12-01 | H75: B1500000072 | J75: $243,000.00
A76: 3171 | C76: LINEXI ISMUSO | D76: ADQUISICION DE JERIGAS | E76: HDMTD-DAF-CD-2025-0251 | F76: 102 | G76: 2025-12-02 | H76: B1500000039 | I76: $37,800.00 | J76: $247,800.00
A77: 3173 | C77: INFALAB | D77: ADQUISICION DE LENTES | E77: HDMTD-DAF-CD-2025-0211 | F77: 102 | G77: 2025-11-20 | H77: E450000000002 | I77: $36,122.11 | J77: $236,800.49
A78: 3181 | C78: MASTER CLEAN FBE IMPOT, SRL | D78: ADQUISICION DE PLATO DESECHABLE | E78: HDMTD-DAF-CD-2025-0245 | F78: 102 | G78: 2025-12-01 | H78: B1500000671 | I78: $35,775.00 | J78: $234,525.00
A79: 3185 | C79: DOOSPHARMA, SRL | D79: ADQUISICION DE CATETER VIA CENTRAL TRIPLE LUMEN | E79: HDMTD-DAF-CD-2025-0189 | F79: 102 | G79: 2025-11-03 | H79: B1500000182 | I79: $35,640.00 | J79: $233,640.00
A80: 3189 | C80: TROPIGAS DOMINICANA | D80: SERVICIO DEL LLENADO DE DOS TANQUE DE GAS | E80: HDMTD-CCC-PEEX-2025-0012 | F80: 102 | G80: 2025-12-01 | H80: E450000003600 | J80: $164,598.25
A81: 3195 | C81: PROGRAMA DE MEDICAMENTOS ESENCIALES | D81: ADQUISICION DE MEDICAMENTOS | E81: N/A | F81: 121 | G81: 2025-11-21 | H81: B1500049701 | J81: $205,176.00
A82: 3195 | C82: PROGRAMA DE MEDICAMENTOS ESENCIALES | D82: ADQUISICION DE MEDICAMENTOS | E82: N/A | F82: 121 | G82: 2025-11-21 | H82: B1500049720 | J82: $3,173,198.36
A83: 3195 | C83: PROGRAMA DE MEDICAMENTOS ESENCIALES | D83: ADQUISICION DE MEDICAMENTOS | E83: N/A | F83: 121 | G83: 2025-11-21 | H83: B1500049721 | J83: $3,263,570.36
A84: 3195 | C84: PROGRAMA DE MEDICAMENTOS ESENCIALES | D84: ADQUISICION DE MEDICAMENTOS | E84: N/A | F84: 121 | G84: 2025-11-24 | H84: B1500049777 | J84: $670,216.96
A85: 3203 | C85: VAL-KAMED PHARMA | D85: ADQUISICION DE GLUCONATO | E85: HDMTD-DAF-CD-2025-0252 | F85: 121 | G85: 2025-12-02 | H85: E45000000138 | J85: $242,286.00
A86: 3207 | C86: OBELCA | D86: AADQUISICION DE BEBEROS PARA EL USO DEL HOSPITAL | E86: HDMTD-DAF-CD-2025-0238 | F86: 426 | G86: 2025-12-05 | H86: B1500001021 | I86: $31,392.00 | J86: $205,792.00
A87: 3211 | C87: LATIN AMERCAN MEDICAL | D87: ADQUISICION DE CASSETTTE | E87: HDMTD-DAF-CD-2025-0257 | F87: 426 | G87: 2025-12-08 | H87: E450000000039 | I87: $19,307.32 | J87: $126,570.22
A88: 3215 | C88: DUMAS MEDICAL | D88: ADQUISICION DE LEVETIRACETAM | E88: HDMTD-DAF-CD-2025-0246 | F88: 100 | G88: 2025-12-01 | H88: B1500000104 | J88: $241,150.00
A89: 3219 | C89: GERENFAR | D89: ADQUISICION DE LABETALOL | E89: HDMTD-DAF-CD-2025-0148 | F89: 100 | G89: 2025-12-01 | H89: B1500001434 | J89: $1,242,000.00
A90: 3223 | C90: SEAN DOMINICANA | D90: ADQUISICION DE MIDAZOLAM | E90: HDMTD-DAF-CM-2025-0150 | F90: 100 | G90: 2025-12-01 | H90: E450000000340 | J90: $1,490,000.00
A91: 3229 | C91: OBELCA | D91: ADQUISICION DE REPARACION DE CAMA | E91: HDMTD-DAF-CD-2025-0247 | F91: 100 | G91: 2025-12-01 | H91: B1500001016 | I91: $8,640.00 | J91: $56,640.00
A92: 3233 | C92: DUMAS MEDICAL | D92: ADQUISICION DE CITICOLINA | E92: HDMTD-DAF-CD-2025-0256 | F92: 100 | G92: 2025-12-02 | H92: B1500000107 | J92: $240,000.00
A93: 3237 | C93: FUMIGACIONES FUMIDEX | D93: CONTRATACION DE SERVICIO DE DESINFECCION Y FUMUGACION | E93: HDMTD-DAF-CM-2025-0119 | F93: 100 | G93: 2025-12-02 | H93: B1500000128 | I93: $17,064.00 | J93: $111,864.00
A94: 3241 | C94: GREEMEX | D94: ADQUISICION DE RESMA | E94: HDMTD-DAF-CD-2025-0230 | F94: 100 | G94: 2025-12-02 | H94: B1500000030 | I94: $36,000.00 | J94: $241,900.00
A95: 3249 | C95: DUMAS MEDICAL | D95: ADQUISICION DE KIT NEBULIZADOR | E95: HDMTD-DAF-CD-2025-0237 | F95: 100 | G95: 2025-12-01 | H95: B1500000103 | I95: $5,040.00 | J95: $33,040.00
A96: 3253 | C96: PEREZ Y PUJOLS MEDICAL | D96: ADQUISICION DE AMIODORA PARA USO DE ESTE HOSPITAL | E96: HDMTD-DAF-CD-2025-0236 | F96: 100 | G96: 2025-12-08 | H96: B1500000514 | J96: $42,000.00
A97: 3259 | C97: CIENTEC | D97: ADQUISICION DE REACTIVO | E97: HDMTD-CCC-PEEX-2025-0013 | F97: 102 | G97: 2025-12-08 | H97: E450000000035 | I97: $510.30 | J97: $1,146,014.30
A98: 3261 | C98: LINEXI INSUMOS MEDICOS, SRL | D98: ADQUISICION DE HEPA-MERZ | E98: HDMTD-DAF-CD-2025-0234 | F98: 102 | G98: 2025-12-02 | H98: B1500000036 | J98: $85,250.00
A99: 3265 | C99: GRUPO CAR-M | D99: ADQUISICION DE MOVILES DESECHABLE | E99: HDMTD-DAF-CD-2025-0253 | F99: 102 | G99: 2025-12-02 | H99: E450000000514 | I99: $35,640.00 | J99: $233,640.00
A100: 3269 | C100: REFREASU | D100: SUMINISTRO E INSTALACION DE HIEEROS PARA VENTANAS Y CORTINAS | E100: HDMTD-DAF-CD-2025-0258 | F100: 100 | G100: 2025-12-05 | H100: B1500000334 | I100: $37,675.01 | J100: $246,980.61
A101: 3275 | C101: OBELCA, SRL | D101: SERVICIO DE MANTENIENTO ANUAL PARA AUTOCLAVE | E101: HDMTD-DAF-CM-2024-0088 | F101: 102 | G101: 2025-12-08 | H101: B1500001023 | I101: $69,984.00 | J101: $458,784.00
A102: 3279 | C102: HOSPITRONICA | D102: SERVICIOS DE REPARACION Y MANTENIMIENTO | E102: HDMTD-DAF-CM-2025-0152 | F102: 102 | G102: 2025-12-02 | H102: B1500000190 | I102: $142,650.00 | J102: $935,150.00
A103: 3285 | C103: HOSPITRONICA | D103: SERVICIO DE MANTENIMIENTO DE VENTILADORES | E103: HDMTD-DAF-CD-2025-0244 | F103: 102 | G103: 2025-12-02 | H103: B1500000191 | I103: $36,152.55 | J103: $237,000.03
A104: 3289 | C104: SENCOMD HAND IMPORTA LEAN | D104: SERVICIOS DE REPARACION DE AUTOCLAVE | E104: HDMTD-DAF-CD-2025-0228 | F104: 102 | G104: 2025-12-18 | H104: B1500000053 | I104: $15,030.00 | J104: $98,530.00
A105: 3297 | C105: OBELCA | D105: SERVICIO Y REPARCACION Y MANTENIMIENTO DE ASCENSOR | E105: HDMTD-DAF-CD-2025-0248 | F105: 102 | G105: 2025-12-05 | H105: B1500001022 | I105: $13,860.00 | J105: $90,860.00
A106: 3302 | C106: UVRO SOLUCIONES | D106: SERVICIO ALQULER DE TRANSPORTE PARA RETIRAR MEDICAMENTO | E106: HDMTD-DAF-CD-2025-0212 | F106: 102 | G106: 2025-11-24 | H106: B1500000516 | J106: $21,000.00
A107: 3302 | C107: UVRO SOLUCIONES | D107: SERVICIO ALQULER DE TRANSPORTE PARA RETIRAR MEDICAMENTO | E107: HDMTD-DAF-CD-2025-0212 | F107: 102 | G107: 2025-12-05 | H107: B1500000523 | J107: $10,500.00
A108: 3306 | C108: ROJAS Y SERRANO | D108: ADQUSICION DE PRODUCTO DE LIMPIEZA | E108: HDMTD-DAF-CM-2025-0134 | F108: 102 | G108: 2025-12-01 | H108: B1500001479 | I108: $10,152.97 | J108: $66,558.40
A109: 3311 | C109: GRUPO ANTACE | D109: ADQUISICION DE BOWL | E109: HDMTD-DAF-CD-2025-0259 | F109: 102 | G109: 2025-12-11 | H109: B1500000514 | I109: $20,880.00 | J109: $136,880.00
A110: 3315 | C110: HOSPITRONICA | D110: SERVICIOS DE MANTENIMIENTO DE TOMOGAFO | E110: HDMTD-DAF-CD-2025-0227 | F110: 102 | G110: 2025-12-15 | H110: B1500000192 | I110: $24,660.00 | J110: $161,660.00
A111: 3319 | C111: HOSPITRONICA | D111: SERVICIO DE MANTENIMIENTOS DEL RESONADOR | E111: HDMTD-DAF-CD-2025-0239 | F111: 102 | G111: 2025-12-15 | H111: B1500000193 | I111: $26,100.00 | J111: $171,100.00
A112: 3321 | C112: TROPIGAS DOMINICANA | D112: SERVICIO DE LLENADO DE TANQUE | E112: HDMTD-CCC-PEEX-2025-0012 | F112: 102 | G112: 2025-12-15 | H112: E450000018111 | J112: $124,981.88
A113: 3326 | C113: SERVICIOS GASTRONOMICOS HERMANOS PIRON, SRL | D113: SERVICIO DE BUFFET PARA ACTIVIDAD CON ENCARGADOS, CORDINADORES Y SUPERVISORES | E113: HDMTD-DAF-CD-2025-0265 | F113: 102 | G113: 2025-12-13 | H113: B1500000015 | I113: $29,988.13 | J113: $196,588.83
A114: 3328 | C114: SERVICIOS GASTRONOMICOS | D114: SERVICIO DE BUFFET DE ALMUERZO | E114: HDMTD-DAF-CM-2025-0269 | F114: 102 | G114: 2025-12-12 | H114: B1500000012 | I114: $17,370.00 | J114: $113,870.00
A115: 3331 | C115: SERVICIOS GASTRONOMICO HERMANOS PIRON, SRL | D115: SERVICIOS DE BUFETT PARA 130 PERSONA | E115: HDMTD-DAF-CD-2025-0225 | F115: 102 | G115: 2025-12-12 | H115: B1500000013 | I115: $14,400.00 | J115: $94,400.00
A116: 3345 | C116: GRUPO IRMACELIS SERVICES, SRL | D116: ADQUISICION DE PAPEL BOND PARA ESTE HOSPITAL | E116: HDMTD-DAF-CM-2025-0149 | F116: 102 | G116: 2025-12-15 | H116: B1500000302 | I116: $28,677.60 | J116: $187,997.60
A117: 3349 | C117: TONER DEPORT | D117: SERVICIOS DE MANTENIMIENTO, RENTA E INTALACION DE IMPRESORA | E117: HDMTD-DAF-CM-2025-0123 | F117: 102 | G117: 2025-12-15 | H117: E4500000593 | I117: $60,284.86 | J117: $395,200.76
A118: 3359 | C118: OBELCA, SRL | D118: SERVICIO DE REPARACION MANTENIMIENTO DE EQUIPAMINTO | E118: HDMTD-DAF-CD-2025-0229 | F118: 102 | G118: 2025-12-15 | H118: B1500001035 | I118: $37,530.00 | J118: $246,030.00
A119: 3362 | C119: REFREASU LOGISTIC AND CONSTRUCTION SRL | D119: SERVICIO DE ADECUACION DEL AREA DEL PABELLON PSIQUIATRICO | E119: HDMTD-DAF-CM-2025-0145 | F119: 102 | G119: 2025-12-10 | H119: B1500000336 | I119: $254,529.00 | J119: $1,668,579.00
A120: 3364 | C120: PROVEEDORES DEL CARIBE,PROVECARSRL | D120: ADQUISICION DE SABANA Y CUBRE COLCHON PARA EL HOSPITAL | E120: HDMTD-DAF-CM-2025-0160 | F120: 102 | G120: 2025-12-15 | H120: B1500000326 | I120: $69,480.00 | J120: $455,480.00
A121: 3368 | C121: GRUPO CAR-M | D121: ADQUISICION DE BROMURO DE IPATROPIO PARA EL HOSPITAL | E121: HDMTD-DAF-CM-2025-0155 | F121: 102 | G121: 2025-12-03 | H121: E450000000570 | J121: $468,000.00
A122: 3372 | C122: ATHRIVEL, SRL | D122: ADQUISICION DE VIVERES PARA USO DEL HOSPITAL | E122: HDMTD-DAF-CM-2025-0139 | F122: 102 | G122: 2025-12-15 | H122: B1500000106 | J122: $548,455.00
A123: 3376 | C123: CAPELLAN DENTAL, SRL | D123: ADQUISICION DE TURBINAS Y MICOMOTORES PARA EL USO DEL HOSPITAL | E123: HDMTD-DAF-CD-2025-0226 | F123: 102 | G123: 02/12/2025. | H123: E450000000010 | I123: $6,770.44 | J123: $44,384.00
A124: 3382 | C124: SERVICIOS ELECTROMEDICOS E INSTITUCIONALES, SA | D124: ADQUISICION DE ESPIROMETRO PARA ESTUDIOS DE FUNCION PULMONAR | E124: HDMTD-DAF-CD-2025-0255 | F124: 426 | G124: 2025-12-12 | H124: E450000000190 | I124: $16,631.89 | J124: $109,031.27
A125: 3389 | C125: SERVICIOS GASTRONOMICOS HERMANOS PIRON, SRL | D125: SERVICIO DE ALQUILER CRISTALERIA, CUBERTERIA, SILLA, MESA Y TRANSPORTE INCLUIDO TRANSPORTE PARA ACTIVIDAD DEL HOSPITAL | E125: HDMTD-DAF-CD-2025-0268 | F125: 102 | G125: 2025-12-13 | H125: B1500000014 | I125: $7,916.40 | J125: $51,896.40
A126: 3393 | C126: PROPUESTA DE SERVICIOS MEDICOS INTEGRALES | D126: ADQUISICION DE CARNES | E126: HDMTD-DAF-CM-2025-0125 | F126: 102 | G126: 2025-12-18 | H126: B1500000016 | J126: $217,877.00
A127: 3416 | C127: GRUPO FARMACEUTICO CAR-M, SRL | D127: ADQUISICION DE LEVETIRACETAM 500MG INYECTABLES | E127: HDMTD-DAF-CM-2025-0178 | F127: 102 | G127: 2025-12-18 | H127: E450000000573 | J127: $455,000.00
F131: TOTAL RD$ | J131: =SUM(J15:J130) -> $42,595,551.52
C135: Licda: veronica pastranos | G135: Kelvin modesto Segura Herasme
C136: Encargado de Contabilidad | G136: Director Financiero
